fUSD/lending_fUSD_20240716
["ID","MTS","AMOUNT","RATE_DAILY","PERIOD"]
[332420701,1721171434026,-241.782,0.0001816,2]
[332420702,1721171434036,-2373.0,0.0001816,2]
[332420703,1721171434045,-549.0,0.0001816,2]
[332420704,1721171434054,-954.741,0.0001816,2]
[332420705,1721171434064,-34230.853,0.0001816,2]
[332420706,1721171434073,-5782.0,0.0001816,2]
[332420707,1721171434082,-1667.0,0.0001816,2]
[332420708,1721171434092,-800.664,0.0001816,2]
[332420709,1721171434101,-1200.0,0.0001816,2]
[332420710,1721171434111,-300.0,0.000183,6]
[332420711,1721171434122,-600.0,0.000184,6]
[332420712,1721171434132,-10000.0,0.00018439,2]
[332420713,1721171434141,-301.68914234,0.00018492,2]
[332420714,1721171434150,-900.0,0.000185,6]
[332420715,1721171434159,-17382.39739782,0.000186,7]
[332420716,1721171434170,-1200.0,0.000186,6]
[332420717,1721171434179,-1105.78970482,0.0001862,2]
[332420718,1721171434188,-1010.71011216,0.0001862,2]
[332420719,1721171434198,-383.99247553,0.00018634,2]
[332420720,1721171434208,-1500.0,0.000187,6]
[332420721,1721171434217,-805.42887238,0.00018759,2]
[332420722,1721171434226,-300.0,0.000188,6]
[332420723,1721171434236,-500.0,0.00018847,2]
[332420724,1721171434245,-500.0,0.00018848,2]
[332420725,1721171434255,-647.42838071,0.00018864,2]
[332420726,1721171434264,-160.74,0.00018877,2]
[332420727,1721171434274,-568.54026862,0.00018899,2]
[332420728,1721171434283,-167.07041145,0.000189,2]
[332420729,1721171434295,-1000.0,0.000189,2]
[332420730,1721171434304,-2000.0,0.000189,2]
[332420731,1721171434315,-3325.0,0.000189,2]
[332420732,1721171434324,-349.81758026,0.000189,2]
[332420733,1721171434334,-544.8215,0.000189,2]
[332420734,1721171434343,-300.0,0.000189,6]
[332420735,1721171434353,-880.13173191,0.000189,2]
[332420736,1721171434363,-405.55317126,0.000189,2]
[332420737,1721171434373,-940.0,0.00018904,2]
[332420738,1721171434383,-190.396758,0.00018904,2]
[332420739,1721171434392,-868.59057618,0.00018919,2]
[332420740,1721171434401,-347.68317165,0.00018919,2]
[332420741,1721171434410,-718.67533476,0.00018919,2]
[332420742,1721171434419,-330.46990394,0.00018919,2]
[332420743,1721171434428,-1130.77288993,0.00018944,2]
[332420744,1721171434437,-159.07,0.00018988,2]
[332420745,1721171434447,-152.42858912,0.0001899,2]
[332420746,1721171434456,-159.07,0.0001899,2]
[332420747,1721171434466,-159.07,0.0001899,2]
[332420748,1721171434475,-159.07,0.0001899,2]
[332420749,1721171434484,-159.07,0.0001899,2]
[332420750,1721171434494,-159.07,0.0001899,2]
[332420751,1721171434503,-159.07,0.0001899,2]
[332420752,1721171434512,-159.07,0.0001899,2]
[332420753,1721171434521,-82416.88957508,0.00018998,4]
[332420754,1721171434531,-1278.26289599,0.00018999,2]
[332420755,1721171434543,-308.61050773,0.00018999,2]
[332420756,1721171434554,-196.59457478,0.00018999,2]
[332420757,1721171434564,-155.72385129,0.00018999,2]
[332420758,1721171434574,-155.0,0.00018999,2]
[332420759,1721171434583,-624.51640094,0.00018999,2]
[332420760,1721171434593,-500.0,0.00018999,2]
[332420761,1721171434602,-423.32288415,0.00018999,2]
[332420762,1721171434612,-568.73582907,0.00018999,2]
[332420763,1721171434621,-300.0,0.00018999,2]
[332420764,1721171434631,-300.0,0.00018999,2]
[332420765,1721171434640,-2123671.04515824,0.00019,2]
[332420766,1721171434683,-620.99,0.00019,2]
[332420767,1721171434704,-1010.84700863,0.00019,2]
[332420768,1721171434715,-345415.0607539,0.00019,2]
[332420769,1721171434727,-328.33,0.00019,2]
[332420770,1721171434737,-290.89568695,0.00019,2]
[332420771,1721171434762,-353.22,0.0001515,2]
[332420772,1721171434772,-75.10614833,0.00019,2]
[332420773,1721171438485,-155.0,0.00014499,2]
[332420774,1721171438495,-1620.1574,0.0001506,2]
[332420775,1721171438505,-353.22,0.0001515,2]
[332420776,1721171438514,-353.22,0.0001515,2]
[332420777,1721171438524,-353.22,0.0001515,2]
[332420778,1721171438533,-353.22,0.0001515,2]
[332420779,1721171438543,-353.22,0.0001515,2]
[332420780,1721171438553,-353.22,0.0001515,2]
[332420781,1721171438562,-5000.0,0.00017444,2]
[332420782,1721171438571,-13159.0,0.0001881,2]
[332420783,1721171438580,-155.0,0.00018899,2]
[332420784,1721171438590,-174.04574505,0.00018999,2]
[332420785,1721171438600,-273260.86297412,0.00019,2]
[332420786,1721171438618,-21332.92879371,0.00019,2]
[332420787,1721171438840,-30286.63931483,0.00019,2]
[332420788,1721171438852,-26718.03744393,0.00019,2]
[332420789,1721171438863,-18335.72411188,0.00019,2]
[332420937,1721171440645,-200.0,0.00013472,2]
[332420939,1721171440655,-505.01358725,0.00019,2]
[332420946,1721171440713,-548.94403522,0.00019,2]
[332420948,1721171440724,-412216.32879213,0.00019,2]
[332420954,1721171440776,-819.68910007,0.00019,2]
[332421250,1721171443620,-155.0,0.00013574,2]
[332421252,1721171443629,-33601.22282231,0.00019,2]
[332421255,1721171443641,-976.20732012,0.00019,2]
[332421257,1721171443651,-616.45468681,0.00019,2]
[332421259,1721171443663,-1192.2241377,0.00019,2]
[332421261,1721171443674,-2093.79820878,0.00019,2]
[332421274,1721171443813,-747.85523931,0.00019,2]
[332421275,1721171443876,-1243.6415,0.00019,2]
[332421276,1721171443887,-16183.93104,0.00019,2]
[332421554,1721171446637,-198.96306483,0.000189,2]
[332421556,1721171446647,-845.0,0.00019,2]
[332421558,1721171446656,-464108.32116764,0.00019,2]
[332421560,1721171446666,-716795.2896917,0.00019,2]
[332421562,1721171446678,-2536.20892993,0.00019,2]
[332421565,1721171446691,-1898.23381044,0.00019,2]
[332421569,1721171446722,-603.12307284,0.00019,2]
[332421571,1721171446733,-782.09202092,0.00019,2]
[332421573,1721171446745,-3499.87252233,0.00019,2]
[332421581,1721171446812,-605.67764587,0.00019,2]
[332423140,1721171723529,1269.95880681,0.00011199,2]
[332423141,1721171766515,722.81429297,0.00011199,2]
[332423142,1721171810221,494.07511306,0.00011199,2]
[332423143,1721171849606,155.48552727,0.00011199,2]
[332423144,1721171850132,269.96247161,0.00011199,2]
[332423145,1721171858600,581.19029726,0.00011199,2]
[332423146,1721171869966,155.0,0.00011199,2]
[332423147,1721171880620,155.0,0.00011199,2]
[332423148,1721171892287,178.94818853,0.00011199,2]
[332423149,1721171898038,155.0,0.00011199,2]
[332423150,1721171903998,209.05498001,0.00011199,2]
[332423151,1721171913653,164.03676157,0.00011199,2]
[332423152,1721171919344,227.38500209,0.00011199,2]
[332423153,1721171962834,174.04574505,0.00011199,2]
[332423157,1721172164475,523.93908812,0.00011199,2]
[332423159,1721172310201,519.26994235,0.00011199,2]
[332423160,1721172321186,150.0,9e-05,2]
[332423162,1721172324646,155.0,0.00011199,2]
[332423163,1721172337558,150.0,0.00011,2]
[332423165,1721172372145,164.03676157,0.00011199,2]
[332423166,1721172421847,227.38500209,0.00011199,2]
[332423167,1721172435778,305.96591464,0.00011199,2]
[332423168,1721172437628,227.38500209,0.00011199,2]
[332423169,1721172441848,205.0,9.8e-05,2]
[332423178,1721172564555,431.61894751,0.00011879,2]
[332423189,1721172631547,-163.74701316,0.00012273,2]
[332423190,1721172631557,-353.62281741,0.00012878,2]
[332423191,1721172631567,-353.6228174,0.00012889,2]
[332423192,1721172631576,-353.6228174,0.000129,2]
[332423193,1721172631586,-399.52,0.00012978,2]
[332423194,1721172631595,-250.0,0.00013,2]
[332423195,1721172631605,-155.0,0.00013128,2]
[332423196,1721172631615,-303.66616832,0.000135,2]
[332423197,1721172631627,-3336.87104265,0.000135,2]
[332423198,1721172631638,-2363.54969674,0.000135,2]
[332423199,1721172631647,-305.96591464,0.00013516,2]
[332423200,1721172631656,-305.96591464,0.00013516,2]
[332423201,1721172631666,-227.38500209,0.00013516,2]
[332423202,1721172631675,-335.86599298,0.0001358,2]
[332423203,1721172631685,-500.0,0.00013597,2]
[332423204,1721172631695,-3577.6652,0.00013599,2]
[332423205,1721172631704,-250.0,0.00013615,2]
[332423206,1721172631715,-300.0,0.00013859,2]
[332423207,1721172631725,-2502.04653759,0.0001386,2]
[332423208,1721172631739,-3018.35960908,0.0001386,2]
[332423209,1721172631797,-7638.59385333,0.0001386,2]
[332423210,1721172631808,-161.9,0.0001386,2]
[332423211,1721172631818,-1627.9,0.0001386,2]
[332423212,1721172631827,-220.13,0.0001389,3]
[332423213,1721172631838,-1620.1574,0.000139,2]
[332423214,1721172631848,-160.74,0.00013969,2]
[332423215,1721172631857,-150.0,0.00013989,2]
[332423216,1721172631866,-6753.84984945,0.0001399,2]
[332423217,1721172631876,-182.09,0.0001399,2]
[332423218,1721172631886,-182.09,0.0001399,2]
[332423219,1721172631895,-182.09,0.0001399,2]
[332423220,1721172631904,-182.09,0.0001399,2]
[332423221,1721172631914,-182.09,0.0001399,2]
[332423222,1721172631923,-182.09,0.0001399,2]
[332423223,1721172631933,-182.09,0.0001399,2]
[332423224,1721172631943,-182.09,0.0001399,2]
[332423225,1721172631953,-182.09,0.0001399,2]
[332423226,1721172631963,-182.09,0.0001399,2]
[332423227,1721172631973,-182.09,0.0001399,2]
[332423229,1721172631982,-182.09,0.0001399,2]
[332423230,1721172631992,-182.09,0.0001399,2]
[332423232,1721172632002,-182.09,0.0001399,2]
[332423234,1721172632012,-182.09,0.0001399,2]
[332423236,1721172632023,-182.09,0.0001399,2]
[332423237,1721172632033,-182.09,0.0001399,2]
[332423238,1721172632043,-182.09,0.0001399,2]
[332423239,1721172632053,-182.09,0.0001399,2]
[332423240,1721172632062,-182.09,0.0001399,2]
[332423241,1721172632071,-159.17176133,0.0001399,2]
[332423242,1721172632083,-22.91823867,0.0001399,2]
[332423243,1721172632093,-182.09,0.0001399,2]
[332423244,1721172632102,-182.09,0.0001399,2]
[332423245,1721172632112,-182.09,0.0001399,2]
[332423246,1721172632122,-64.45432523,0.0001399,2]
[332423247,1721172632174,-117.63567477,0.0001399,2]
[332423248,1721172632184,-182.09,0.0001399,2]
[332423249,1721172632194,-182.09,0.0001399,2]
[332423250,1721172632204,-0.17287001,0.0001399,2]
[332423251,1721172632216,-181.91712999,0.0001399,2]
[332423252,1721172632225,-182.09,0.0001399,2]
[332423253,1721172632234,-374.22,0.0001399,2]
[332423254,1721172632243,-182.09,0.0001399,2]
[332423255,1721172632253,-374.22,0.0001399,2]
[332423256,1721172632262,-374.22,0.0001399,2]
[332423257,1721172632274,-182.09,0.0001399,2]
[332423258,1721172632284,-374.22,0.0001399,2]
[332423259,1721172632294,-182.09,0.0001399,2]
[332423260,1721172632304,-358.73985561,0.0001399,2]
[332423261,1721172632315,-15.48014439,0.0001399,2]
[332423262,1721172632325,-374.22,0.0001399,2]
[332423263,1721172632334,-182.09,0.0001399,2]
[332423264,1721172632344,-374.22,0.0001399,2]
[332423265,1721172632353,-374.22,0.0001399,2]
[332423266,1721172632363,-374.22,0.0001399,2]
[332423267,1721172632373,-182.09,0.0001399,2]
[332423268,1721172632384,-374.22,0.0001399,2]
[332423269,1721172632394,-374.22,0.0001399,2]
[332423270,1721172632404,-182.09,0.0001399,2]
[332423271,1721172632414,-374.22,0.0001399,2]
[332423272,1721172632424,-374.22,0.0001399,2]
[332423273,1721172632434,-182.09,0.0001399,2]
[332423274,1721172632443,-374.22,0.0001399,2]
[332423275,1721172632452,-182.09,0.0001399,2]
[332423276,1721172632462,-374.22,0.0001399,2]
[332423277,1721172632471,-374.22,0.0001399,2]
[332423278,1721172632481,-182.09,0.0001399,2]
[332423279,1721172632490,-374.22,0.0001399,2]
[332423280,1721172632499,-646.3260189,0.00013999,2]
[332423281,1721172632509,-1401.99669292,0.00014,2]
[332423282,1721172632553,-374.22,0.0001399,2]
[332423283,1721172632563,-154.5,0.0001399,2]
[332423309,1721172639659,-27.59,0.0001399,2]
[332423311,1721172639670,-367.12700369,0.0001399,2]
[332423320,1721172639748,-7.09299631,0.0001399,2]
[332423322,1721172639758,-374.22,0.0001399,2]
[332423324,1721172639767,-182.09,0.0001399,2]
[332423326,1721172639785,-374.22,0.0001399,2]
[332423328,1721172639795,-374.22,0.0001399,2]
[332423330,1721172639805,-182.09,0.0001399,2]
[332423332,1721172639815,-374.22,0.0001399,2]
[332423334,1721172639825,-374.22,0.0001399,2]
[332423336,1721172639836,-182.09,0.0001399,2]
[332423338,1721172639846,-374.22,0.0001399,2]
[332423340,1721172639856,-133.19595369,0.0001399,2]
[332423342,1721172639867,-241.02404631,0.0001399,2]
[332423344,1721172639877,-182.09,0.0001399,2]
[332423346,1721172639887,-374.22,0.0001399,2]
[332423348,1721172639896,-374.22,0.0001399,2]
[332423350,1721172639906,-182.09,0.0001399,2]
[332423352,1721172639915,-374.22,0.0001399,2]
[332423354,1721172639925,-182.09,0.0001399,2]
[332423356,1721172639934,-374.22,0.0001399,2]
[332423358,1721172639944,-374.22,0.0001399,2]
[332423360,1721172639953,-154.73182564,0.0001399,2]
[332423363,1721172639972,-219.48817436,0.0001399,2]
[332423365,1721172639981,-374.22,0.0001399,2]
[332423367,1721172639991,-182.09,0.0001399,2]
[332423369,1721172640000,-374.22,0.0001399,2]
[332423371,1721172640010,-374.22,0.0001399,2]
[332423374,1721172640019,-182.09,0.0001399,2]
[332423377,1721172640034,-59.17182564,0.0001399,2]
[332423380,1721172640046,-315.04817436,0.0001399,2]
[332423383,1721172640055,-89.59328135,0.0001399,2]
[332423386,1721172640067,-284.62671865,0.0001399,2]
[332423389,1721172640078,-271.75328135,0.0001399,2]
[332423392,1721172640089,-102.46671865,0.0001399,2]
[332423393,1721172640098,-182.09,0.0001399,2]
[332423395,1721172640108,-374.22,0.0001399,2]
[332423397,1721172640117,-374.22,0.0001399,2]
[332423399,1721172640127,-182.09,0.0001399,2]
[332423402,1721172640136,-374.22,0.0001399,2]
[332423405,1721172640145,-374.22,0.0001399,2]
[332423407,1721172640155,-182.09,0.0001399,2]
[332423410,1721172640164,-374.22,0.0001399,2]
[332423413,1721172640174,-374.22,0.0001399,2]
[332423416,1721172640183,-374.22,0.0001399,2]
[332423419,1721172640193,-374.22,0.0001399,2]
[332423422,1721172640202,-307.90956996,0.0001399,2]
[332423430,1721172640235,-66.31043004,0.0001399,2]
[332423433,1721172640243,-297.63828559,0.0001399,2]
[332423436,1721172640254,-76.58171441,0.0001399,2]
[332423438,1721172640263,-374.22,0.0001399,2]
[332423441,1721172640273,-374.22,0.0001399,2]
[332423444,1721172640293,-374.22,0.0001399,2]
[332423447,1721172640306,-374.22,0.0001399,2]
[332423450,1721172640316,-374.22,0.0001399,2]
[332423452,1721172640325,-374.22,0.0001399,2]
[332423454,1721172640334,-374.22,0.0001399,2]
[332423456,1721172640344,-374.22,0.0001399,2]
[332423458,1721172640354,-239.96594397,0.0001399,2]
[332423460,1721172640366,-134.25405603,0.0001399,2]
[332423462,1721172640375,-374.22,0.0001399,2]
[332423463,1721172640385,-179.87594397,0.0001399,2]
[332423466,1721172640397,-194.34405603,0.0001399,2]
[332423468,1721172640407,-374.22,0.0001399,2]
[332423469,1721172640416,-374.22,0.0001399,2]
[332423471,1721172640426,-374.22,0.0001399,2]
[332423473,1721172640435,-374.22,0.0001399,2]
[332423475,1721172640445,-374.22,0.0001399,2]
[332423477,1721172640454,-374.22,0.0001399,2]
[332423479,1721172640464,-374.22,0.0001399,2]
[332423480,1721172640474,-374.22,0.0001399,2]
[332423482,1721172640484,-374.22,0.0001399,2]
[332423484,1721172640494,-374.22,0.0001399,2]
[332423486,1721172640504,-374.22,0.0001399,2]
[332423488,1721172640514,-374.22,0.0001399,2]
[332423490,1721172640526,-374.22,0.0001399,2]
[332423491,1721172640542,-374.22,0.0001399,2]
[332423493,1721172640552,-374.22,0.0001399,2]
[332423495,1721172640562,-374.22,0.0001399,2]
[332423497,1721172640571,-374.22,0.0001399,2]
[332423499,1721172640580,-374.22,0.0001399,2]
[332423500,1721172640590,-374.22,0.0001399,2]
[332423502,1721172640599,-374.22,0.0001399,2]
[332423504,1721172640608,-374.22,0.0001399,2]
[332423506,1721172640618,-374.22,0.0001399,2]
[332423508,1721172640627,-10861.35434398,0.00014,2]
[332423510,1721172640638,-1415.55102347,0.00014,2]
[332423512,1721172640649,-3526.4181981,0.00014,2]
[332423514,1721172640661,-4186.27582778,0.00014,2]
[332423516,1721172640672,-955.690019,0.00014,2]
[332423518,1721172640684,-4366.07284405,0.00014,2]
[332423521,1721172640709,-374.22,0.0001399,2]
[332423523,1721172640719,-11180.48913948,0.00014,2]
[332423525,1721172640731,-268.58540041,0.00014,2]
[332423527,1721172640743,-1040.96877088,0.00014,2]
[332423529,1721172640755,-4236.283,0.00014,2]
[332423531,1721172640767,-4142.3137765,0.00014,2]
[332423533,1721172640787,-1370.50507707,0.00014,2]
[332423535,1721172640800,-1206.395,0.00014,2]
[332423537,1721172640812,-11716.20553662,0.00014,2]
[332423540,1721172640824,-1028.443,0.00014,2]
[332423542,1721172640836,-1172535.3394852,0.00014,2]
[332423543,1721172640847,-847652.78216643,0.00014,2]
[332423546,1721172640869,-374.22,0.0001399,2]
[332423548,1721172640880,-927.68749695,0.00014,2]
[332423550,1721172640891,-2776.36303042,0.00014,2]
[332423552,1721172640903,-331.19429758,0.00014,2]
[332423554,1721172640915,-2621.60252239,0.00014,2]
[332423556,1721172640927,-258.26659757,0.00014,2]
[332423560,1721172640956,-466.19806949,0.00014,2]
[332423562,1721172640968,-2435.38767799,0.00014,2]
[332423721,1721172642719,-270.36878084,0.00013956,2]
[332423725,1721172642728,-374.22,0.0001399,2]
[332423729,1721172642740,-585925.82574329,0.00014,2]
[332423741,1721172642847,-348.04079335,0.00014,2]
[332423757,1721172642988,-3157.63418344,0.00014,2]
[332423759,1721172643000,-78153.48393449,0.00014,2]
[332423761,1721172643011,-65089.79376115,0.00014,2]
[332423763,1721172643022,-1467.50814136,0.00014,2]
[332423765,1721172643037,-543.56044065,0.00014,2]
[332424137,1721172646771,-734.02466279,0.00014,2]
[332424139,1721172646787,-895.73293621,0.00014,2]
[332424141,1721172646799,-440.29978316,0.00014,2]
[332424144,1721172646810,-1356.9970628,0.00014,2]
[332424148,1721172646847,-344.65771857,0.00014,2]
[332424150,1721172646858,-518.79764672,0.00014,2]
[332424153,1721172646869,-2910.55810647,0.00014,2]
[332424155,1721172646880,-890.2,0.00014,2]
[332424157,1721172646891,-401.81664306,0.00014,2]
[332424160,1721172646915,-60005.19570201,0.00014,2]
[332424181,1721172647096,-254.08592998,0.00014,2]
[332424183,1721172647107,-319.31715993,0.00014,2]
[332424185,1721172647118,-3207.21499114,0.00014,2]
[332424187,1721172647129,-2356.43045917,0.00014,2]
[332424189,1721172647140,-5780.45101238,0.00014,2]
[332424192,1721172647151,-46128.77761372,0.00014,2]
[332424194,1721172647161,-325.355,0.00014,2]
[332425480,1721172949510,487.73,0.00011932,2]
[332425481,1721172988356,647.48042413,0.00011932,2]
[332425482,1721172993819,1219.77654754,0.00011932,2]
[332425483,1721172995149,553.62317681,0.00011932,2]
[332425484,1721172996232,10266.19225938,0.00011932,2]
[332425485,1721173002818,308.6146599,0.00011932,2]
[332425486,1721173003338,158.70478125,0.00011932,2]
[332425487,1721173006662,1604.78847042,0.00011932,2]
[332425488,1721173008187,155.0,0.00011932,2]
[332425490,1721173119172,195.99901512,0.00011932,2]
[332425491,1721173333649,-200.0,0.000135,4]
[332425492,1721173333676,-2575.0,0.000135,5]
[332425495,1721173486508,463.34,0.00010833,2]
[332425497,1721173563549,5809.88378139,0.00011199,2]
[332425499,1721173585245,262.03554057,0.00011199,2]
[332425500,1721173655687,4440.02397801,0.00011199,2]
[332425512,1721173831685,-335.92939992,0.00012302,2]
[332425513,1721173831697,-348.89010204,0.00012302,2]
[332425514,1721173831708,-291.505,0.00012302,2]
[332425515,1721173831739,-93.62286099,0.00012302,2]
[332425516,1721173831749,-242.040985,0.00012425,2]
[332425517,1721173831759,-1000.0,0.00012488,2]
[332425518,1721173831769,-1550.88153966,0.0001259,2]
[332425519,1721173831780,-0.90846034,0.0001259,2]
[332425520,1721173831790,-150.0,0.00012656,2]
[332425521,1721173831800,-200.0,0.0001267,2]
[332425522,1721173831810,-171.67245254,0.0001267,2]
[332425523,1721173831821,-328.32754746,0.0001267,2]
[332425524,1721173831830,-173.15774171,0.00012725,2]
[332425525,1721173831840,-500.0,0.00012753,2]
[332425526,1721173831849,-6444.62126396,0.00012826,2]
[332425527,1721173831869,-17455.37873604,0.00012826,2]
[332425528,1721173831879,-250.0,0.00012853,2]
[332425529,1721173831888,-1368.43,0.00012903,2]
[332425530,1721173831898,-158.67,0.00012903,2]
[332425531,1721173831906,-288.0,0.00012945,2]
[332425532,1721173831916,-250.0,0.0001296,2]
[332425533,1721173831926,-2021.05,0.0001296,2]
[332425534,1721173831936,-168.77,0.00012986,2]
[332425535,1721173831945,-250.0,0.00013,2]
[332425536,1721173831955,-200.0,0.00013083,2]
[332425537,1721173831966,-463.34,0.00013097,2]
[332425538,1721173831976,-1288.64771064,0.00013128,2]
[332425539,1721173831986,-7894.50618587,0.0001349,2]
[332425540,1721173831995,-179.99,0.00013499,2]
[332425541,1721173832005,-499.99,0.00013499,2]
[332425542,1721173832015,-150.0,0.00013499,2]
[332425543,1721173832024,-8851.34649845,0.000135,2]
[332425544,1721173832036,-2170.12350155,0.000135,2]
[332425545,1721173832046,-2128.38,0.000135,2]
[332425546,1721173832055,-200.0,0.000135,4]
[332425547,1721173832064,-500.0,0.000136,4]
[332425549,1721173832074,-250.0,0.00013699,2]
[332425551,1721173832083,-500.0,0.00013699,2]
[332425552,1721173832093,-2847.42,0.00013699,2]
[332425553,1721173832102,-1232.6,0.00013699,2]
[332425554,1721173832112,-700.0,0.000137,5]
[332425555,1721173832121,-742.71222823,0.00013719,2]
[332425557,1721173832130,-355.83748688,0.00013719,2]
[332425559,1721173832143,-106.06883383,0.00013719,2]
[332425561,1721173832155,-712.75561134,0.0001376,2]
[332425563,1721173832166,-757.13168339,0.0001376,2]
[332425566,1721173832182,-660.054,0.0001376,2]
[332425568,1721173832194,-711.6,0.0001376,2]
[332425569,1721173832205,-651.54,0.0001376,2]
[332425570,1721173832219,-269.02250527,0.0001376,2]
[332425571,1721173832228,-219.6763,0.0001376,2]
[332425572,1721173832238,-351.714125,0.0001376,2]
[332425573,1721173832249,-279.69657276,0.0001376,2]
[332425574,1721173832260,-532.00720224,0.0001376,2]
[332425575,1721173832270,-150.84457117,0.00013799,2]
[332425576,1721173832280,-415.98592689,0.000138,5]
[332425577,1721173832291,-285.39321113,0.000138,5]
[332425578,1721173832303,-298.62086198,0.000138,5]
[332425579,1721173832312,-88.47807162,0.0001385,3]
[332425580,1721173832324,-65.46192838,0.0001385,3]
[332425581,1721173832333,-251134.0,0.0001386,2]
[332425582,1721173832343,-691.82126077,0.00013889,2]
[332425583,1721173832352,-276.51444218,0.00013899,2]
[332425584,1721173832362,-176.67671953,0.000139,2]
[332425585,1721173832372,-3245.5692,0.000139,2]
[332425586,1721173832381,-22161.028,0.000139,2]
[332425587,1721173832391,-1000.0,0.000139,2]
[332425588,1721173832401,-294.6914,0.000139,2]
[332425589,1721173832411,-1000.0,0.000139,2]
[332425590,1721173832422,-1200.0,0.000139,5]
[332425591,1721173832432,-306.49459693,0.000139,2]
[332425592,1721173832441,-198.96306482,0.000139,2]
[332425593,1721173832451,-488.66646635,0.00013989,2]
[332425594,1721173832463,-196.37015947,0.00013989,2]
[332425595,1721173832472,-151.73,0.0001399,2]
[332425596,1721173832481,-151.73,0.0001399,2]
[332425597,1721173832491,-151.73,0.0001399,2]
[332425598,1721173832501,-151.73,0.0001399,2]
[332425599,1721173832510,-151.73,0.0001399,2]
[332425600,1721173832520,-151.73,0.0001399,2]
[332425601,1721173832529,-151.73,0.0001399,2]
[332425602,1721173832539,-151.73,0.0001399,2]
[332425603,1721173832549,-151.73,0.0001399,2]
[332425604,1721173832558,-151.73,0.0001399,2]
[332425605,1721173832568,-151.73,0.0001399,2]
[332425606,1721173832577,-151.73,0.0001399,2]
[332425607,1721173832587,-151.73,0.0001399,2]
[332425608,1721173832596,-151.73,0.0001399,2]
[332425609,1721173832606,-151.73,0.0001399,2]
[332425610,1721173832615,-151.73,0.0001399,2]
[332425611,1721173832624,-151.73,0.0001399,2]
[332425612,1721173832634,-151.73,0.0001399,2]
[332425613,1721173832644,-452.42821323,0.00013999,2]
[332425614,1721173832654,-300.0,0.00013999,2]
[332425615,1721173832664,-227.38500209,0.00013999,2]
[332425616,1721173832674,-6699.60089959,0.00013999,2]
[332425617,1721173832684,-141830.48319695,0.00014,2]
[332425618,1721173832696,-350.0,0.00014,2]
[332425627,1721173838029,-263.75418329,0.00013999,2]
[332425628,1721173838039,-833.02928152,0.00014,2]
[332425629,1721173838051,-259.86726451,0.00014,2]
[332425630,1721173838062,-544.43805971,0.00014,2]
[332425631,1721173838075,-5093.6836793,0.00014,2]
[332425633,1721173838086,-1172535.3394852,0.00014,2]
[332425635,1721173838097,-847652.78216643,0.00014,2]
[332425732,1721173839907,-1141.64646167,0.0001372,2]
[332425733,1721173839917,-2632.44181887,0.00014,2]
[332425734,1721173840065,-391.01499905,0.00014,2]
[332425735,1721173840119,-2000.0,0.00014,2]
[332425981,1721173843008,-312.6659016,0.00014,2]
[332425983,1721173843019,-245592.52328032,0.00014,2]
[332426278,1721173845940,-4829.88847547,0.00014,2]
[332426786,1721174086760,1056.35991323,0.00011199,2]
[332426787,1721174093235,1272.64394685,0.00011199,2]
[332426790,1721174237751,161.91047731,0.00011199,2]
[332426791,1721174257998,308924.46646092,0.00011098,2]
[332426792,1721174280377,400.0,0.00011199,2]
[332426793,1721174390153,2614.34082975,0.00011199,2]